bitfinex-derivatives/quotes_ETHF0:USTF0_20250803
["timestamp","ask_amount","ask_price","bid_price","bid_amount"]
[1754181039749,3.2078,3374.6,3374.2,3.8777]
[1754181040053,3.2078,3374.6,3374.2,0.59285]
[1754181040249,3.2078,3374.6,3373.3,1.48252]
[1754181040250,0.59284,3374.3,3374.0,1.6131]
[1754181040447,3.4367,3374.1,3374.0,1.6131]
[1754181040946,3.4367,3374.1,3373.7,3.8777]
[1754181041147,3.4367,3374.1,3373.9,1.6131]
[1754181041455,3.2078,3374.2,3373.9,0.59289]
[1754181041643,3.2078,3374.2,3374.0,0.59288]
[1754181041947,3.2078,3374.2,3374.1,3.8777]
[1754181042154,5.412,3374.2,3373.7,2.2646]
[1754181042449,3.2078,3374.2,3374.1,3.8777]
[1754181042846,1.82537,3374.1,3373.7,1.6131]
[1754181043051,2.2042,3373.9,3373.7,0.59293]
[1754181043344,3.4367,3373.8,3373.3,2.9507]
[1754181043538,2.2042,3373.7,3373.4,2.9507]
[1754181043744,0.9799,3373.7,3373.6,1.6131]
[1754181043958,1.2325,3373.5,3373.3,1.6131]
[1754181044145,0.9799,3373.4,3373.3,0.59301]
[1754181044345,5.412,3373.8,3373.4,1.3376]
[1754181044545,0.59299,3373.4,3373.1,2.2646]
[1754181044747,2.2042,3373.3,3373.2,1.6131]
[1754181044948,0.59294,3373.7,3373.2,1.6131]
[1754181044949,1.82544,3373.7,3373.2,1.6131]
[1754181045255,2.2042,3373.5,3372.9,2.85768]
[1754181045446,2.2042,3373.5,3373.1,0.59304]
[1754181045845,2.2042,3373.5,3373.3,2.2646]
[1754181046052,3.80071,3373.9,3373.4,3.8777]
[1754181046245,1.48201,3374.5,3373.8,3.8777]
[1754181046246,3.80062,3374.4,3373.8,3.8777]
[1754181046453,3.80062,3374.4,3372.6,2.81340881]
[1754181046454,0.5929,3373.9,3373.4,2.2646]
[1754181046655,2.2042,3373.6,3373.1,2.20613]
[1754181046955,2.2042,3373.9,3373.6,2.9507]
[1754181047252,0.59294,3373.7,3373.6,1.6131]
[1754181047455,0.59297,3373.5,3373.0,0.59305]
[1754181047647,2.2042,3373.5,3373.1,3.8777]
[1754181047844,2.2042,3373.5,3373.3,3.8777]
[1754181048050,2.79719,3373.5,3373.1,1.6131]
[1754181048263,3.2078,3373.6,3373.4,1.6131]
[1754181048264,6.00496,3373.6,3373.4,1.6131]
[1754181048447,3.80076,3373.6,3373.4,1.6131]
[1754181048648,0.59299,3373.4,3372.8,2.2646]
[1754181048850,2.2042,3373.3,3373.0,3.8777]
[1754181049054,2.2042,3373.3,3373.1,1.3376]
[1754181049254,2.2042,3373.4,3372.9,2.5401]
[1754181049451,2.2042,3373.2,3373.0,1.6131]
[1754181050352,0.9799,3373.1,3373.0,1.6131]
[1754181050657,3.2078,3373.6,3373.4,0.59298]
[1754181050955,0.59297,3373.6,3373.0,1.6131]
[1754181051162,4.02965,3373.7,3373.2,1.6131]
[1754181051360,4.02965,3373.7,3373.1,0.59304]
[1754181051554,2.2042,3373.6,3373.0,0.59306]
[1754181051858,0.9799,3373.4,3373.1,3.8777]
[1754181052060,0.9799,3373.3,3372.6,2.9507]
[1754181052660,0.9799,3372.8,3372.7,1.6131]
[1754181052857,2.2042,3372.8,3372.7,1.6131]
[1754181053048,2.79726,3373.0,3372.8,1.3376]
[1754181053259,3.80085,3373.1,3372.5,0.59314]
[1754181053454,1.82558,3372.9,3372.6,2.5401]
[1754181053661,0.9799,3372.7,3372.6,2.5401]
[1754181053958,1.2243,3372.8,3372.3,3.54387]
[1754181053959,1.2325,3372.6,3372.3,3.54387]
[1754181054162,0.59308,3372.9,3372.5,2.9507]
[1754181054350,1.82562,3372.7,3372.5,2.9507]
[1754181054556,2.2042,3372.6,3372.5,1.6131]
[1754181054861,3.2078,3373.1,3372.8,0.59308]
[1754181055158,2.2042,3373.7,3373.4,2.85759]
[1754181055358,0.78767916,3373.6,3373.5,1.3376]
[1754181055561,1.76757916,3373.6,3372.9,3.2078]
[1754181055758,2.7972,3373.4,3373.1,2.2646]
[1754181055957,3.4367,3373.8,3373.0,3.8777]
[1754181056258,0.78786339,3373.7,3373.0,2.9507]
[1754181056563,3.2078,3373.9,3373.0,1.6131]
[1754181056564,2.2042,3373.5,3373.0,1.6131]
[1754181056758,0.59295,3373.7,3373.3,0.593]
[1754181056950,3.2078,3373.9,3373.0,4.69043]
[1754181057159,3.2078,3374.3,3373.9,0.5929]
[1754181057353,0.78810054,3374.2,3373.9,0.5929]
[1754181057654,3.2078,3374.3,3374.2,3.8777]
[1754181058160,3.2078,3374.3,3374.2,1.6131]
[1754181058161,5.401,3374.3,3374.2,1.6131]
[1754181058358,6.6286,3374.3,3373.9,0.5929]
[1754181058557,2.1932,3374.2,3374.0,1.5881]
[1754181058754,3.2078,3374.3,3374.0,0.59288]
[1754181058960,3.2078,3374.3,3374.2,4.40095]
[1754181059161,3.2078,3374.3,3373.8,2.22]
[1754181059461,5.401,3374.3,3374.0,0.9718]
[1754181059662,5.401,3374.3,3374.2,1.5881]
[1754181060055,1.2276,3374.1,3373.8,1.5881]
[1754181060250,3.2078,3374.3,3374.1,0.59287]
[1754181060454,3.2078,3374.3,3374.2,3.8081]
[1754181060963,2.1932,3374.2,3373.7,0.9718]
[1754181061162,0.59288,3374.0,3373.5,4.7959]
[1754181061358,0.9251,3373.8,3373.6,3.8081]
[1754181061550,0.59287,3374.1,3373.5,0.59297]
[1754181061551,0.9251,3374.1,3374.0,3.8081]
[1754181061756,0.59296,3373.6,3372.8,3.8081]
[1754181061957,6.6286,3373.8,3373.2,2.5599]
[1754181062167,1.2276,3373.6,3373.1,0.59303]
[1754181062361,3.2078,3373.8,3373.7,3.8081]
[1754181062562,0.9251,3374.0,3373.6,0.59295]
[1754181062563,0.9251,3374.0,3373.8,3.8081]
[1754181062761,0.59288,3374.0,3373.9,3.8081]
[1754181063069,2.1527,3374.1,3373.0,1.5881]
[1754181063252,3.4208,3373.7,3373.0,1.5881]
[1754181063457,0.59295,3373.6,3373.0,0.59306]
[1754181063657,3.4208,3373.2,3372.9,1.5881]
[1754181063858,2.1932,3373.0,3372.9,1.5881]
[1754181064164,2.1932,3373.0,3372.8,0.59309]
[1754181064365,2.1932,3373.0,3372.8,1.5881]
[1754181064860,3.4208,3372.9,3372.7,3.80091]
[1754181065063,3.4208,3372.8,3372.1,3.2078]
[1754181065265,3.4208,3372.8,3371.8,1.5881]
[1754181065266,3.4208,3372.6,3372.2,0.5932]
[1754181065468,0.9251,3372.4,3372.2,3.4295]
[1754181065768,2.1932,3372.4,3372.3,1.5881]
[1754181066066,3.4208,3372.4,3372.3,1.5881]
[1754181066269,3.4208,3372.4,3372.1,0.59321]
[1754181066562,5.401,3373.1,3372.9,0.59307]
[1754181066755,2.1932,3373.3,3373.2,1.5881]
[1754181066957,0.9251,3373.3,3373.2,1.84123]
[1754181067163,3.2078,3373.4,3372.8,1.5881]
[1754181067364,3.2078,3373.0,3372.8,1.5881]
[1754181067563,2.1932,3372.9,3372.1,3.8081]
[1754181067758,3.2078,3373.4,3372.8,1.2482]
[1754181067964,3.2078,3373.4,3372.9,2.5599]
[1754181068166,3.2078,3373.9,3373.5,0.59296]
[1754181068358,3.2078,3373.9,3372.9,3.2078]
[1754181068554,3.2078,3373.5,3373.0,1.5881]
[1754181068760,3.2078,3373.5,3373.2,0.59302]
[1754181068965,3.2078,3373.5,3373.4,0.59299]
[1754181069164,3.2078,3373.5,3373.4,4.40109]
[1754181070469,3.4213,3373.4,3373.2,0.59302]
[1754181070763,3.2078,3373.5,3372.9,3.2078]
[1754181070764,3.2078,3373.5,3373.4,4.40109]
[1754181071063,3.2078,3373.5,3373.4,1.5881]
[1754181071260,3.2078,3373.5,3373.4,3.8081]
[1754181071656,3.4213,3373.4,3373.2,1.5881]
[1754181071863,3.2078,3373.5,3372.8,3.42939]
[1754181071864,1.2681,3373.0,3372.8,3.42939]
[1754181072174,3.2078,3373.1,3373.0,1.5881]
[1754181072762,0.59298,3373.5,3373.0,1.2482]
[1754181072966,3.2078,3373.2,3373.1,1.5881]
[1754181073773,2.1932,3373.2,3372.9,1.5881]
[1754181074067,3.2078,3373.7,3373.2,1.5881]
[1754181074276,1.2681,3373.5,3373.3,1.5881]
[1754181074464,2.4962,3373.6,3372.7,0.9718]
[1754181074666,1.2281,3373.2,3372.9,0.59307]
[1754181074867,2.1932,3373.1,3372.9,2.81307]
[1754181075068,2.1932,3373.1,3373.0,1.5881]
[1754181075670,3.2078,3373.3,3373.0,1.2482]
[1754181075867,3.2078,3373.3,3373.2,2.8363]
[1754181076374,5.401,3373.3,3373.2,2.8363]
[1754181076573,5.401,3373.3,3373.2,1.5881]
[1754181076965,4.4359,3373.3,3373.0,1.5881]
[1754181077166,4.01448,3372.3,3372.0,2.63473569]
[1754181077370,0.59327,3371.9,3371.4,8.06253569]
[1754181077668,1.4827,3372.9,3371.4,8.06253569]
[1754181077669,2.78652,3371.5,3371.4,1.40663569]
[1754181077867,2.1932,3371.4,3371.1,0.59338]
[1754181078068,0.59331,3371.6,3371.0,0.59341]
[1754181078265,1.48296,3372.4,3370.8,3.68074687]
[1754181078266,0.5934,3371.1,3370.8,2.5599]
[1754181078465,3.2078,3370.9,3370.8,1.5881]
[1754181078671,22.665,3372.3,3370.7,0.59346]
[1754181078672,2.1932,3371.1,3370.7,0.59346]
[1754181078874,2.1932,3371.1,3370.4,3.2078]
[1754181078875,0.59342,3371.0,3370.4,3.2078]
[1754181079178,0.59339,3371.1,3370.6,3.8081]
[1754181079381,0.59338,3371.2,3370.5,3.8081]
[1754181079577,0.59346,3370.8,3370.6,3.8081]
[1754181079780,0.59338,3371.2,3370.5,0.5935]
[1754181079982,0.59338,3371.2,3370.7,0.9718]
[1754181079983,2.1932,3371.1,3370.7,0.9718]
[1754181080172,2.1932,3371.1,3371.0,1.5881]
[1754181080673,2.1932,3371.1,3370.5,1.5881]
[1754181081069,2.7866,3371.1,3370.5,2.1816]
[1754181081265,2.7866,3371.1,3370.5,3.4298]
[1754181081574,2.1932,3371.1,3370.9,3.8081]
[1754181081764,3.2078,3371.3,3371.0,3.8081]
[1754181081963,0.9251,3371.8,3371.2,7.0159]
[1754181082175,0.59328,3371.8,3370.4,3.2078]
[1754181082377,2.1932,3371.3,3371.2,1.5881]
[1754181082682,5.401,3371.3,3371.2,1.5881]
[1754181082980,2.5207,3371.3,3371.2,3.8081]
[1754181083275,0.9251,3372.2,3372.1,1.5881]
[1754181084067,2.1932,3372.2,3371.3,2.18146]
[1754181084268,3.2078,3371.9,3371.3,1.5881]
[1754181084474,2.1932,3371.7,3371.3,1.5881]
[1754181084681,2.1932,3371.6,3371.4,1.5881]
[1754181084980,0.9251,3371.3,3371.2,1.5881]
[1754181085277,3.2078,3371.5,3371.3,0.59336]
[1754181085580,5.401,3371.5,3371.4,1.5881]
[1754181085778,3.2078,3371.5,3371.4,3.8081]
[1754181086275,3.2078,3371.9,3371.7,0.59329]
[1754181086577,0.9251,3372.0,3371.9,2.8363]
[1754181087669,2.1932,3372.0,3371.9,1.5881]
[1754181088278,2.2516,3371.5,3371.3,0.9823]
[1754181088471,2.2516,3371.5,3371.4,1.5761]
[1754181088667,3.2078,3372.1,3371.4,1.5761]
[1754181088668,3.2078,3371.7,3371.4,0.59333]
[1754181088873,3.2078,3372.6,3372.5,3.8688]
[1754181089084,3.80085,3373.1,3372.4,0.59316]
[1754181089374,0.59309,3372.9,3372.5,3.8688]
[1754181089574,0.59316,3372.5,3372.1,4.1901]
[1754181089778,1.3251,3372.7,3372.5,0.59314]
[1754181090079,2.2516,3372.8,3372.7,0.59311]
[1754181090280,1.3251,3372.7,3372.6,2.16922]
[1754181090576,3.2078,3373.1,3372.7,0.59311]
[1754181090885,2.2516,3372.9,3372.3,2.5584]
[1754181091176,2.2516,3372.9,3372.7,2.8865]
[1754181091373,2.2516,3372.9,3372.8,1.5761]
[1754181091577,0.59308,3372.9,3372.4,0.59316]
[1754181091778,2.2516,3372.5,3372.2,1.3104]
[1754181092080,1.5998,3372.4,3371.9,3.80105]
[1754181092273,2.2516,3372.3,3372.0,2.2927]
[1754181092473,3.2078,3372.7,3372.1,2.16932]
[1754181092673,2.2516,3372.7,3372.4,3.8688]
[1754181092882,2.2516,3373.1,3372.9,0.9823]
[1754181093085,5.4594,3373.6,3373.0,3.8688]
[1754181093682,2.2516,3373.1,3372.9,1.5761]
[1754181093978,2.2516,3373.1,3373.0,1.5761]
[1754181094179,2.19286,3373.0,3372.7,2.8865]
[1754181094370,0.9265,3372.8,3372.7,2.8865]
[1754181094569,3.80085,3373.1,3372.7,3.8688]
[1754181094773,3.2078,3373.1,3372.9,3.8688]
[1754181094980,3.2078,3373.1,3373.0,3.8688]
[1754181096780,3.80085,3373.1,3372.4,0.59317]
[1754181096968,1.5998,3372.9,3372.7,1.5761]
[1754181097174,1.5998,3372.9,3372.7,3.8688]
[1754181097370,3.2078,3373.1,3372.8,1.9035]
[1754181097574,3.2078,3373.1,3373.0,3.8688]
[1754181098481,0.59306,3373.0,3372.4,3.8688]
[1754181098677,7.65225,3373.1,3372.4,3.8688]
[1754181098879,7.65225,3373.1,3372.5,1.5761]
[1754181099074,0.59308,3372.9,3372.5,2.16924]
[1754181099274,3.8514,3372.8,3372.5,1.5761]
[1754181099480,0.9265,3372.6,3372.5,1.5761]
[1754181099686,0.9265,3372.6,3372.5,2.8865]
[1754181099880,2.2516,3372.6,3372.5,2.8865]
[1754181100081,2.2516,3372.5,3372.4,0.59317]
[1754181100484,2.2516,3372.5,3372.4,2.16927]
[1754181100685,2.2516,3372.5,3372.4,1.5761]
[1754181100885,0.9265,3372.5,3372.4,3.8688]
[1754181101883,2.2516,3372.2,3372.0,2.8865]
[1754181102191,3.8514,3371.9,3371.8,3.2078]
[1754181102482,1.3251,3371.9,3371.8,3.2078]
[1754181102788,3.8514,3371.9,3371.8,3.2078]
[1754181102977,3.8514,3371.9,3371.8,4.7839]
[1754181103178,3.8514,3371.9,3371.3,26.4968]
[1754181104086,3.8514,3371.5,3371.3,1.5761]
[1754181104282,3.8514,3371.3,3371.0,0.5934]
[1754181104489,2.9249,3371.3,3371.1,3.8688]
[1754181104686,3.8514,3371.3,3371.1,3.8688]
[1754181105182,3.8514,3371.3,3370.9,0.59342]
[1754181105183,2.2516,3371.1,3370.9,1.5761]
[1754181105387,2.2516,3371.1,3371.0,1.5761]
[1754181105882,3.8514,3371.1,3371.0,1.5761]
[1754181106181,2.2516,3371.0,3370.9,1.5761]
[1754181106576,3.2078,3371.5,3370.4,3.2078]
[1754181106875,2.81340881,3371.8,3370.3,0.22215312]
[1754181106876,1.51994,3370.9,3370.6,2.2927]
[1754181107075,0.9265,3370.8,3370.7,1.5761]
[1754181107286,2.2516,3371.0,3370.3,0.22215312]
[1754181107482,3.8514,3370.6,3370.4,4.5182]
[1754181107790,3.8514,3370.6,3370.3,0.22215312]
[1754181107791,3.8514,3370.4,3370.3,0.22215312]
[1754181108280,2.2516,3370.4,3370.3,0.22215312]
[1754181108479,2.2516,3370.4,3370.3,3.10865312]
[1754181108676,2.2516,3370.4,3370.3,4.09095312]
[1754181109082,2.2516,3370.7,3370.4,2.8865]
[1754181109285,2.2516,3370.4,3370.3,0.22215312]
[1754181109489,3.8514,3370.4,3370.3,0.22215312]
[1754181110388,4.8076,3370.7,3370.3,4.68448312]
[1754181110686,5.4594,3370.7,3370.6,2.8865]
[1754181110888,7.65266,3370.7,3370.3,0.22215312]
[1754181111187,3.8514,3370.5,3370.4,1.5761]
[1754181111385,5.4594,3371.1,3370.9,2.2927]
[1754181111594,5.4594,3371.1,3371.0,1.5761]
[1754181112093,3.8514,3371.0,3370.3,4.02348312]
[1754181112281,5.4594,3371.1,3370.9,2.8865]
[1754181112482,4.1343,3371.1,3371.0,2.8865]
[1754181112680,4.1343,3371.1,3371.0,3.8688]
[1754181113078,3.2078,3371.1,3371.0,3.8688]
[1754181113475,1.3251,3371.4,3371.1,3.47989]
[1754181113682,0.9265,3371.5,3371.3,1.5761]
[1754181113885,4.5329,3371.6,3371.3,0.9823]
[1754181114089,4.5329,3371.6,3370.9,3.2078]
[1754181114090,3.2078,3371.6,3371.4,1.5761]
[1754181114291,3.2078,3371.6,3371.5,3.8688]
[1754181114486,0.59334,3371.4,3370.5,5.5005]
[1754181114678,2.9249,3371.3,3370.9,3.2078]
[1754181114884,2.2516,3371.5,3371.2,2.8865]
[1754181115181,2.2516,3371.5,3371.4,3.8688]
[1754181115488,3.8514,3371.9,3371.1,1.5761]
[1754181115691,0.5934,3371.1,3370.8,4.7839]
[1754181115888,2.2516,3371.1,3371.0,1.5761]
[1754181116090,2.2516,3371.0,3370.8,6.0943]
[1754181116389,1.51987,3371.3,3370.9,0.9823]
[1754181116592,4.8076,3371.6,3371.3,1.57566]
[1754181116781,1.48266,3373.1,3371.8,1.5761]
[1754181116782,2.84486,3371.9,3371.8,1.5761]
[1754181116978,2.2516,3371.9,3371.8,2.8865]
[1754181117184,2.2516,3371.9,3370.5,1.48376]
[1754181117185,0.59329,3371.7,3371.1,0.59339]
[1754181117485,1.5998,3371.6,3371.3,2.2927]
[1754181117690,2.2516,3371.4,3371.3,3.8688]
[1754181117890,2.2516,3371.8,3371.3,3.8688]
[1754181118079,3.2078,3372.0,3371.5,1.6227]
[1754181118280,5.4333,3372.0,3370.8,3.2078]
[1754181118482,6.02647,3372.4,3372.2,3.7793]
[1754181118782,2.2255,3372.7,3372.5,3.7793]
[1754181118989,2.2255,3372.7,3372.6,1.6227]
[1754181119186,4.829,3372.8,3372.6,3.7793]
[1754181119388,1.6212,3372.6,3371.7,3.7793]
[1754181119589,3.8467,3372.6,3371.7,2.1566]
[1754181119788,2.8777,3372.2,3372.0,1.6227]
[1754181119990,2.2255,3372.1,3372.0,1.6227]
[1754181120184,2.2255,3372.1,3372.0,3.7793]
[1754181120383,0.969,3372.1,3372.0,3.7793]
[1754181120587,0.59318,3372.4,3372.0,0.9508]
[1754181120789,3.2078,3372.8,3372.2,2.8285]
[1754181120989,3.2078,3372.8,3371.6,3.2078]
[1754181120990,3.2078,3372.8,3372.5,0.59314]
[1754181121192,3.2078,3373.3,3372.3,3.2078]
[1754181121393,3.2078,3373.7,3372.8,3.2078]
[1754181121600,3.2078,3373.7,3373.6,1.6227]
[1754181121792,1.6212,3373.6,3372.9,3.7793]
[1754181121992,3.2078,3373.4,3372.9,1.6227]
[1754181122201,3.8467,3373.3,3372.9,1.6227]
[1754181122388,3.8467,3373.3,3372.8,0.59309]
[1754181122596,2.2255,3373.2,3373.0,2.8285]
[1754181122797,2.2255,3373.1,3373.0,1.6227]
[1754181122993,22.588,3374.5,3372.6,1.2058]
[1754181122994,1.6212,3374.0,3373.3,0.59301]
[1754181123192,1.6212,3374.0,3372.6,1.48284]
[1754181123193,3.2078,3375.2,3374.5,0.59279]
[1754181123391,3.2078,3375.2,3374.7,3.80055]
[1754181123600,3.2078,3375.2,3374.8,1.2058]
[1754181123897,1.2565,3375.4,3375.1,5.3644]
[1754181124102,3.2078,3375.6,3375.3,1.6227]
[1754181124301,1.2565,3375.9,3375.5,0.59262]
[1754181124597,0.969,3375.8,3375.3,0.59266]
[1754181124806,0.59269,3375.2,3374.8,3.2078]
[1754181124996,0.59271,3375.0,3374.4,2.8285]
[1754181125296,3.2078,3375.6,3374.2,3.2078]
[1754181125297,3.8467,3374.8,3374.2,5.95725]
[1754181125508,2.2255,3375.2,3374.4,0.5928]
[1754181125801,2.2255,3375.2,3374.6,4.8305]
[1754181126100,0.969,3375.2,3374.7,0.59276]
[1754181126299,0.969,3375.2,3374.4,3.2078]
[1754181126300,2.5902,3375.0,3374.1,2.1566]
[1754181126492,0.59266,3375.3,3374.2,0.59285]
[1754181126694,0.59267,3375.2,3374.6,2.8285]
[1754181126896,0.59267,3375.2,3374.7,1.2058]
[1754181127097,0.59267,3375.2,3374.8,2.1566]
[1754181127297,0.969,3374.9,3374.3,1.6227]
[1754181127501,0.59274,3374.8,3374.3,1.6227]
[1754181127702,3.2078,3374.9,3374.4,0.59282]
[1754181127904,1.56172,3375.0,3374.7,2.8285]
[1754181128198,2.81822,3375.0,3374.8,1.6227]
[1754181128403,3.8467,3374.9,3374.4,1.6227]
[1754181128702,1.2565,3374.8,3374.5,2.8285]
[1754181128903,2.2255,3374.8,3374.6,1.6227]
[1754181129095,0.969,3374.8,3374.7,1.6227]
[1754181129297,1.2565,3375.2,3374.7,3.7793]
[1754181129298,2.81819,3375.2,3374.7,3.7793]
[1754181129491,2.2255,3375.1,3374.8,1.2058]
[1754181129709,0.59269,3375.2,3374.9,1.6227]
[1754181129894,0.59269,3375.2,3374.2,3.2078]
[1754181129895,0.59283,3374.3,3374.2,3.2078]
[1754181130096,0.59283,3374.3,3373.8,4.1586]
[1754181130097,2.2255,3374.0,3373.8,4.1586]
[1754181130301,3.2078,3374.3,3373.9,0.5929]
[1754181130599,3.2078,3374.3,3373.8,3.2078]
[1754181130600,0.59284,3374.3,3374.0,3.7793]
[1754181130790,0.59284,3374.3,3373.7,6.9871]
[1754181130997,0.59284,3374.3,3374.0,2.1566]
[1754181131199,4.43954,3374.3,3374.1,1.6227]
[1754181131496,0.969,3374.2,3374.1,1.6227]
[1754181131691,1.2565,3374.3,3374.1,3.7793]
[1754181131900,1.2565,3374.3,3374.2,1.6227]
[1754181132106,0.59285,3374.2,3374.1,1.2058]
[1754181132402,0.969,3374.3,3374.1,0.9508]
[1754181132597,0.969,3374.3,3374.1,2.1566]
[1754181132801,0.969,3374.3,3374.1,3.7793]
[1754181133002,2.2255,3374.3,3374.1,3.7793]
[1754181133393,3.2078,3374.5,3374.3,2.1566]
[1754181133593,3.80061,3374.5,3374.4,3.7793]
[1754181133806,4.76961,3374.5,3374.4,3.7793]
[1754181133997,6.02611,3374.5,3374.4,1.6227]
[1754181134304,5.4333,3374.5,3374.4,1.6227]
[1754181134497,5.4333,3374.5,3374.0,2.1566]
[1754181134498,0.59274,3374.8,3374.3,3.7793]
[1754181134898,0.59274,3374.8,3374.2,3.2078]
[1754181135102,4.43947,3374.7,3374.4,2.8285]
[1754181135404,4.43947,3374.7,3374.5,1.6227]
[1754181136004,2.21397,3374.7,3374.5,1.6227]
[1754181136307,1.2565,3374.5,3374.1,1.6227]
[1754181136603,2.2255,3374.5,3373.9,3.80069]
[1754181136800,2.2255,3374.5,3374.3,3.7793]
[1754181137001,3.2078,3374.9,3374.4,2.8285]
[1754181137219,2.96162,3377.3,3374.4,2.8285]
[1754181137220,5.4333,3375.5,3374.8,3.7793]
[1754181137399,3.2078,3375.5,3375.4,3.7793]
[1754181137900,2.6212,3376.0,3375.4,3.7793]
[1754181137901,4.2078,3376.0,3375.5,1.6227]
[1754181138096,0.5926,3375.7,3375.4,3.2078]
[1754181138405,2.81816,3375.3,3374.6,0.59276]
[1754181138604,2.81816,3375.3,3374.7,3.7793]
[1754181138803,0.59265,3375.4,3374.9,1.6227]
[1754181138998,0.59269,3375.2,3374.6,3.7793]
[1754181139398,0.59266,3375.3,3374.6,2.74937]
[1754181139600,2.81816,3375.3,3374.5,3.2078]
[1754181139810,2.81816,3375.3,3375.1,1.6227]
[1754181140007,0.59266,3375.3,3375.2,1.6227]
[1754181140208,2.81815,3375.4,3375.2,1.6227]
[1754181140607,0.59265,3375.4,3375.2,1.6227]
[1754181140809,2.2255,3375.3,3375.2,1.6227]
[1754181141506,1.2565,3375.7,3375.4,1.6227]
[1754181141709,3.2078,3375.9,3375.8,0.59257]
[1754181141907,1.0,3376.0,3375.9,3.7793]
[1754181142117,4.1768,3376.9,3376.8,3.7793]
[1754181142118,3.2078,3376.9,3376.8,3.7793]
[1754181142505,0.969,3377.3,3376.8,3.7793]
[1754181142706,1.2565,3377.5,3376.0,1.48134]
[1754181142707,4.4643,3377.5,3376.7,3.2078]
[1754181142906,0.5923,3377.4,3376.7,5.4229]
[1754181143207,3.8467,3377.4,3376.7,2.8285]
[1754181143403,2.2255,3377.4,3377.1,2.1566]
[1754181143600,4.43907,3377.0,3376.6,3.7793]
[1754181143813,0.59238,3376.9,3376.6,1.6227]
[1754181144016,1.6212,3376.1,3375.8,1.2058]
[1754181144201,3.2078,3376.1,3375.3,3.2078]
[1754181144406,2.2255,3375.9,3375.4,0.59264]
[1754181144605,1.84912,3375.6,3375.1,1.2058]
[1754181144807,1.6212,3375.5,3374.9,3.80052]
[1754181145019,4.829,3376.1,3375.3,3.2078]
[1754181145317,5.42152,3376.1,3375.4,4.37194]
[1754181145510,0.59256,3375.9,3375.4,3.7793]
[1754181145814,1.84901,3376.2,3375.9,1.2058]
[1754181146107,1.84903,3376.0,3375.7,2.8285]
[1754181146314,3.2078,3376.5,3374.5,1.48198]
[1754181146315,0.969,3375.5,3375.2,1.2058]
[1754181146515,2.2255,3375.4,3375.2,1.2058]
[1754181146716,2.2255,3375.4,3375.2,2.8285]
[1754181146921,3.2078,3375.7,3374.9,0.9508]
[1754181147114,3.8467,3375.6,3374.9,0.9508]
[1754181147318,0.59277,3374.7,3374.3,3.2078]
[1754181147505,1.6212,3374.9,3374.2,1.2058]
[1754181147810,2.2255,3374.0,3373.9,3.2078]
[1754181148023,3.2078,3374.3,3373.5,1.6227]
[1754181148521,3.6993,3374.2,3373.5,1.52347]
[1754181148907,0.59285,3374.2,3373.9,3.7417]
[1754181149109,0.5929,3374.0,3373.4,5.39109]
[1754181149409,0.5929,3374.0,3373.4,4.7981]
[1754181149618,2.1705,3373.9,3373.6,0.9305]
[1754181149811,2.1705,3373.9,3373.7,1.5903]
[1754181150008,0.9261,3374.1,3373.4,3.80078]
[1754181150413,0.59288,3374.0,3373.4,3.80078]
[1754181150615,0.59292,3373.8,3373.4,3.2078]
[1754181150818,2.1705,3374.2,3373.4,4.4287]
[1754181151019,3.6993,3374.2,3373.4,6.019]
[1754181151411,3.2078,3374.3,3372.9,1.06731496]
[1754181151412,3.6993,3373.7,3372.9,2.65761496]
[1754181151616,1.51905,3373.6,3372.9,3.25068496]
[1754181152414,0.59299,3373.4,3372.9,3.25068496]
[1754181152722,3.2078,3373.5,3372.9,3.25068496]
[1754181152723,2.76356,3373.0,3372.9,1.06731496]
[1754181152915,3.6993,3373.0,3372.9,1.06731496]
[1754181154713,3.2078,3373.1,3372.1,2.8112]
[1754181154914,0.59313,3372.6,3372.1,1.5903]
[1754181155216,0.5931,3372.8,3372.3,0.59317]
[1754181155617,2.1705,3372.5,3372.3,1.5903]
[1754181155821,7.50016,3373.1,3372.6,0.59313]
[1754181156011,7.50016,3373.1,3372.5,4.33484]
[1754181156212,2.08233779,3374.5,3373.0,0.59306]
[1754181156213,0.9261,3373.6,3373.0,0.59306]
[1754181156416,0.9261,3373.6,3373.2,0.59302]
[1754181156613,0.9261,3373.5,3373.3,1.5903]
[1754181157018,3.2078,3373.7,3373.4,0.59298]
[1754181157223,2.1705,3373.8,3373.6,0.59294]
[1754181157420,0.9261,3373.8,3373.6,0.59294]
[1754181157617,0.9261,3373.8,3373.7,1.5903]
[1754181158127,0.9261,3374.1,3373.9,1.5903]
[1754181158324,5.981,3374.2,3374.0,1.5903]
[1754181158520,6.9071,3374.2,3374.0,1.5903]
[1754181158828,5.3783,3374.7,3374.1,4.33457]
[1754181159530,5.3783,3374.7,3374.4,0.59281]
[1754181159826,1.5288,3375.0,3374.6,2.8112]
[1754181160028,0.59274,3374.8,3374.6,2.8112]
[1754181160229,0.9261,3374.7,3374.6,1.5903]
[1754181160828,2.1705,3374.5,3373.8,4.1383]
[1754181161021,2.1705,3374.1,3373.9,0.9305]
[1754181161219,1.5189,3374.5,3374.0,2.8112]
[1754181161432,3.2078,3374.7,3374.2,0.9305]
[1754181161620,3.2078,3374.7,3374.1,6.019]
[1754181161621,3.2078,3374.7,3374.3,1.2209]
[1754181161822,0.59276,3374.7,3374.3,0.9305]